Cogmind - Beta 10.2 @@@ ROGUE MODE // 2021.07.04 @ 16:42:40 Player: Demise Result: Destroyed by C-40 Crusher with Compactor Performance ------------- Evolutions (3) 1500 Regions Visited (7) 1400 Robots Destroyed (111) 555 Value Destroyed (3792) 3792 Prototype IDs (1) 20 Alien Tech Used (0) 0 Bonus (645) 645 TOTAL SCORE: 7912 Bonus ------- High Alert Combat Kills 951 Friendly Fire -306 Cogmind --------- Core Integrity 0/700 Matter 141/300 Energy 100/100 System Corruption 0% Temperature Cool (0) Movement Core (50) Location -7/Waste Parts ------- > --- POWER (1) -------- (None) > --- PROPULSION (2) --- (None) > --- UTILITY (8) ------ (None) > --- WEAPON (2) ------- (None) > --- INVENTORY (4) ---- High-capacity Storage Unit High-capacity Battery (400) Improved Medium Armor Plating Heavy Missile Launcher Peak State ------------ > --- POWER ------------ Improved Ion Engine > --- PROPULSION ------- Light Treads Advanced Treads > --- UTILITY ---------- High-capacity Storage Unit Humpback Improved Targeting Computer Improved Medium Armor Plating Hardlight Generator > --- WEAPON ----------- Enhanced Autogun Enhanced Autogun > --- INVENTORY -------- Light Nuclear Core Medium Storage Unit High-capacity Storage Unit High-capacity Storage Unit Humpback Humpback High-capacity Battery High-capacity Matter Pod Advanced Signal Interpreter Salvage Targeting Computer Advanced Targeting Computer Hardened Medium Armor Plating Improved Medium Armor Plating Insulated Plating Hardlight Generator System Shield Shock Rifle Heavy Assault Rifle Heavy Assault Rifle Gauss Rifle Advanced Assault Cannon Shock Bomb Launcher Heavy Missile Launcher Heavy Missile Launcher Heavy Missile Launcher Datajack Mining Laser Blade Trap Blade Trap Blade Trap [Rating: 33] Favorites ----------- Power Light Ion Engine Engine Light Ion Engine Power Core Light Nuclear Core Propulsion Light Treads Treads Light Treads Leg Carbon-fiber Leg Wheel Wheel Utility Humpback Device Hardlight Generator Storage Humpback Processor Improved Targeting Computer Protection Improved Medium Armor Plating Weapon Assault Rifle Energy Gun Small Laser Ballistic Gun Assault Rifle Launcher Heavy Missile Launcher Special Weapon Mining Laser Build | -11 -10 -10 -10 -9 -8 -7 -7 ------- Run | Scr Mat Min Exi Min Mat Fac Was Slots Evolved 6 | . . . . . 4 2 . Power . | . . . . . . . . Propulsion . | . . . . . . . . Utility 6 | . . . . . 4 2 . Weapon . | . . . . . . . . Parts Attached 106 | 6 20 4 5 6 57 7 1 Power 7 | 1 3 . . 1 2 . . Engine 6 | 1 3 . . 1 1 . . Core 1 | . . . . . 1 . . Reactor . | . . . . . . . . Propulsion 16 | 2 3 . . 1 10 . . Treads 12 | 2 3 . . 1 6 . . Leg 3 | . . . . . 3 . . Wheel 1 | . . . . . 1 . . Hover . | . . . . . . . . Flight . | . . . . . . . . Utility 33 | 1 5 . 3 . 22 2 . Device 1 | . . . . . 1 . . Storage 11 | 1 3 . 3 . 3 1 . Processor 5 | . 2 . . . 2 1 . Hackware . | . . . . . . . . Protection 16 | . . . . . 16 . . Artifact . | . . . . . . . . Weapon 50 | 2 9 4 2 4 23 5 1 Energy Gun 3 | 1 . . . . 1 1 . Energy Cannon . | . . . . . . . . Ballistic Gun 31 | 1 7 2 2 3 14 1 1 Ballistic Cannon . | . . . . . . . . Launcher 9 | . 2 2 . 1 2 2 . Special Weapon 7 | . . . . . 6 1 . Impact Weapon . | . . . . . . . . Slashing Weapon . | . . . . . . . . Piercing Weapon . | . . . . . . . . Special Melee Weapon . | . . . . . . . . Unidentified Prototypes 1 | . . . . . 1 . . Parts Lost 19 | . 3 . . 1 9 . 6 Power 5 | . 2 . . 1 1 . 1 Propulsion 4 | . 1 . . . 2 . 1 Utility 6 | . . . . . 4 . 2 Weapon 4 | . . . . . 2 . 2 Highest Loss Streak 6 | . 1 . . 1 5 . 6 Average Slot Usage (%) 89 | . 98 100 92 82 86 73 54 Engine 10 | . 13 14 14 11 7 . . Treads 22 | . 27 28 28 28 16 7 3 Storage 17 | . 15 28 20 14 16 15 10 Processor 5 | . 11 . . . 7 13 13 Protection 7 | . . . . . 17 7 5 Ballistic Gun 21 | . 24 27 28 27 16 13 . Naked Turns 15 | . . . . . . . 15 Heaviest Build 146 | 10 39 40 87 93 146 132 132 Greatest Support 42 | 40 40 40 40 40 42 10 10 Greatest Overweight (x) 28 | . . . 2 2 12 13 28 Average Overweight (x) 1 | . . . 1 2 3 12 13 Largest Inventory Capacity 32 | 6 16 16 24 24 32 32 32 Average Capacity 22 | 4 10 16 20 24 29 32 25 Most Carried 32 | 5 14 16 24 24 32 32 29 Average Carried 21 | 4 9 15 18 23 28 29 23 Final Capacity 32 | 6 16 16 24 24 32 32 4 Final Carried 29 | 5 13 16 24 24 27 29 4 Class Distribution -------------------- 60% | Hauler-Mutant 37% | Mutant Dominant Class ---------------- Mutant | -10/Materials Mutant | -10/Mines Hauler-Mutant | -10/Exiles Hauler-Mutant | -9/Mines Hauler-Mutant | -8/Materials Hauler-Mutant | -7/Factory Hauler-Mutant | -7/Waste Resources | -11 -10 -10 -10 -9 -8 -7 -7 ----------- Run | Scr Mat Min Exi Min Mat Fac Was Matter Collected 3432 | 414 502 274 105 239 1898 . . Remotely . | . . . . . . . . Salvage Created 4679 | 213 559 256 . 145 3506 . . Parts 219 | 22 35 17 . 9 136 . . Haulers Intercepted 4 | . 2 . . . 2 . . Recyclers Shooed 2 | . 1 . . . 1 . . Parts Field Recycled . | . . . . . . . . Retrieved Matter . | . . . . . . . . Parts Self-Destructed . | . . . . . . . . Prevented . | . . . . . . . . Kills | -11 -10 -10 -10 -9 -8 -7 -7 ------- Run | Scr Mat Min Exi Min Mat Fac Was Combat Hostiles Destroyed 88 | . 14 7 . 6 61 . . Melee 2 | . . . . . 2 . . Guns 66 | . 10 1 . 4 51 . . AOE 20 | . 4 6 . 2 8 . . Classes Destroyed 14 | 3 4 1 . 1 5 . . Worker 3 | 2 . . . . 1 . . Builder 2 | . . 1 . . 1 . . Tunneler 4 | 4 . . . . . . . Hauler 4 | . 2 . . . 2 . . Recycler 2 | 1 . 1 . . . . . Mechanic 1 | . . . . . 1 . . Operator 2 | . . . . . 2 . . Watcher 3 | . 2 . . . 1 . . Swarmer 14 | . 5 6 . 3 . . . Grunt 64 | . 9 3 . 2 50 . . Brawler 1 | . . . . 1 . . . Duelist 2 | . . . . . 2 . . Sentry 8 | . . . . . 8 . . Hunter 1 | . . . . . 1 . . Best Kill Streak 11 | 5 5 5 . 3 11 . . Combat Bots Only 9 | . 4 3 . 3 9 . . Max Kills in Single Turn 5 | 1 2 4 . 2 5 . . Gunslinging 1 | . . . . 1 . . . Exploded 4 | . 2 3 . 2 4 . . Melee 1 | . . . . . 1 . . Uniques/NPCs Destroyed . | . . . . . . . . Combat | -11 -10 -10 -10 -9 -8 -7 -7 -------- Run | Scr Mat Min Exi Min Mat Fac Was Damage Taken 6075 | . 831 141 . 256 3747 . 1100 Core 1312 | . 128 28 . 65 353 . 738 Absorbed by Shields 156 | . . . . . 156 . . Core Remaining (%) 48 | 100 . . . 11 35 . . Volleys Fired 328 | 18 60 5 . 11 228 2 4 Largest 2 | 2 2 2 . 2 2 1 2 Hottest 100 | 60 60 40 . 50 100 100 78 Shots Fired 587 | 35 115 6 . 21 401 2 7 Gun 532 | 35 111 2 . 19 364 . 1 Cannon . | . . . . . . . . Launcher 27 | . 4 4 . 2 11 . 6 Special 28 | . . . . . 26 2 . Kinetic 501 | 18 98 2 . 19 363 . 1 Thermal 58 | 17 13 . . . 26 2 . Explosive 16 | . 4 4 . 2 . . 6 Electromagnetic 12 | . . . . . 12 . . Robot Hit Streak 29 | 7 16 2 . 4 29 . 15 Robot Miss Streak 4 | 2 3 1 . 3 4 . 1 Penetration Max . | . . . . . . . . Secondary Targets 9 | . 1 . . 1 7 . . Max Gunslinging Chain 1 | . 1 . . 1 1 . . Shots Hit Robots 427 | 25 82 2 . 11 302 . 5 Core Hits 210 | 8 33 12 . 9 147 . 1 Critical Hits 5 | . . . . . 5 . . Critical Kills 2 | . . . . . 2 . . Critical Parts Destroyed 3 | . . . . . 3 . . Melee Attacks . | . . . . . . . . Impact . | . . . . . . . . Slashing . | . . . . . . . . Piercing . | . . . . . . . . Sneak Attacks . | . . . . . . . . Combat Hostiles . | . . . . . . . . Follow-up Attacks . | . . . . . . . . Damage Inflicted 9182 | 301 1402 464 . 239 6034 . 742 Guns 6154 | 301 1064 11 . 147 4589 . 42 Cannons . | . . . . . . . . Explosions 2991 | . 338 453 . 92 1408 . 700 Melee . | . . . . . . . . Ramming 13 | . . . . . 13 . . Kinetic 5843 | 137 935 11 . 147 4571 . 42 Thermal 560 | 164 129 . . . 267 . . Explosive 1583 | . 338 453 . 92 . . 700 Electromagnetic 1183 | . . . . . 1183 . . Impact . | . . . . . . . . Slashing . | . . . . . . . . Piercing . | . . . . . . . . Highest Corruption 3 | . 3 3 3 3 2 . . Average Corruption 2 | . 2 3 3 3 2 . . Corruption Purged . | . . . . . . . . Effects 70 | . 22 15 12 19 2 . . Message Errors 21 | . 4 4 2 9 2 . . Matter Fused 21 | . 7 2 6 6 . . . Heat Flow Errors 7 | . 2 3 1 1 . . . Energy Discharges 4 | . 1 2 1 . . . . Data Loss (minor) 12 | . 4 4 2 2 . . . Targeting Errors 4 | . 3 . . 1 . . . Weapon Failures 1 | . 1 . . . . . . Overload Shots . | . . . . . . . . Overflow Damage 85 | . 15 . . 1 23 . 46 Projectiles . | . . . . . . . . Explosions 85 | . 15 . . 1 23 . 46 Melee . | . . . . . . . . Knockbacks . | . . . . . . . . Impact . | . . . . . . . . Kinetic . | . . . . . . . . Secondary . | . . . . . . . . Self-Inflicted Damage 189 | . 10 51 . 12 14 . 102 Shots 9 | . 1 2 . 1 2 . 3 Rammed 1 | . . . . . 1 . . Targets Rammed 2 | . . . . . 2 . . Kicked . | . . . . . . . . Crushed 1 | . . . . . 1 . . Highest Temperature 269 | . 269 257 115 121 148 23 . Average Temperature 38 | . 57 113 59 64 30 20 . Received Heat Transfer 2201 | . 327 . . 12 1862 . . Effects 1 | . . 1 . . . . . Interference 1 | . . 1 . . . . . Siege Activations . | . . . . . . . . Robots Corrupted . | . . . . . . . . Combat Hostiles . | . . . . . . . . Parts Fried 6 | . . . . . 6 . . Impact Corruptions . | . . . . . . . . Robots Melted . | . . . . . . . . Combat Hostiles . | . . . . . . . . Parts Melted 1 | 1 . . . . . . . Heat Transferred 1075 | 375 300 . . . 400 . . Parts Sabotaged . | . . . . . . . . Parts Stolen . | . . . . . . . . Parts Stripped . | . . . . . . . . Power Chain Reactions 4 | . . . . . 4 . . Missiles Intercepted . | . . . . . . . . Alert | -11 -10 -10 -10 -9 -8 -7 -7 ------- Run | Scr Mat Min Exi Min Mat Fac Was Peak Influence 1602 | 35 255 207 . 100 1602 712 279 Initial 712 | . 22 8 . . 39 712 249 Average 290 | 19 120 57 . 38 540 712 247 Maximum Alert Level 5 | . 1 1 . . 5 3 1 Low Security (%) 59 | 100 86 93 . 100 23 . . Level 1 17 | . 13 6 . . 29 . 100 Level 2 8 | . . . . . 20 . . Level 3 7 | . . . . . 11 100 . Level 4 5 | . . . . . 13 . . Level 5 . | . . . . . . . . High Security . | . . . . . . . . Max Security . | . . . . . . . . Squads Dispatched 20 | . 3 . . . 17 . . Investigation 11 | . 3 . . . 8 . . Extermination . | . . . . . . . . Reinforcement 5 | . . . . . 5 . . Assault 4 | . . . . . 4 . . Garrison . | . . . . . . . . Intercept . | . . . . . . . . Construction Impeded 1 | . . . . . 1 . . Haulers Reinforced . | . . . . . . . . Stealth | -11 -10 -10 -10 -9 -8 -7 -7 --------- Run | Scr Mat Min Exi Min Mat Fac Was Distress Signals 10 | . 2 . . . 8 . . Communications Jammed . | . . . . . . . . Distress Signals . | . . . . . . . . Times Spotted 139 | . 20 6 . 8 101 . 4 Peak Tracking Total 9 | . 6 3 . 4 9 . 4 Tactical Retreats 11 | . 1 . . . 10 . . Traps | -11 -10 -10 -10 -9 -8 -7 -7 ------- Run | Scr Mat Min Exi Min Mat Fac Was Traps Triggered 8 | . 4 . . . 3 1 . Indirectly 1 | . . . . . 1 . . Trap Hack Attempts . | . . . . . . . . Triggered . | . . . . . . . . Disarmed . | . . . . . . . . Reprogrammed . | . . . . . . . . Reused 2 | . . . . . . . 2 Traps Extracted . | . . . . . . . . Installed 2 | . . . . . . . 2 Triggered 1 | . . . . . 1 . . Exploded 3 | . . . . 3 . . . Machines | -11 -10 -10 -10 -9 -8 -7 -7 ---------- Run | Scr Mat Min Exi Min Mat Fac Was Machines Disabled 4 | . . . . 1 3 . . Max in Single Turn 2 | . . . . . 2 . . Garrison Access 1 | . . . . . 1 . . Machines Sabotaged . | . . . . . . . . Garrisons Compromised . | . . . . . . . . Overloaded Fab Kills . | . . . . . . . . Fab Network Shutdowns . | . . . . . . . . Hacking | -11 -10 -10 -10 -9 -8 -7 -7 --------- Run | Scr Mat Min Exi Min Mat Fac Was Machines Accessed 19 | . 6 . 1 . 12 . . Terminals 10 | . 3 . . . 7 . . Fabricators . | . . . . . . . . Repair Stations 3 | . 1 . . . 2 . . Recycling Units 3 | . 2 . . . 1 . . Scanalyzers 2 | . . . . . 2 . . Garrison Access . | . . . . . . . . Total Hacks 69 | . 26 . 1 . 42 . . Successful 40 | . 12 . 1 . 27 . . Failed 29 | . 14 . . . 15 . . Catastrophic 3 | . . . . . 3 . . Database Lockouts . | . . . . . . . . Manual 42 | . 17 . . . 25 . . Terminals 38 | . 13 . . . 25 . . Fabricators . | . . . . . . . . Repair Stations 10 | . 4 . . . 6 . . Recycling Units 12 | . 9 . . . 3 . . Scanalyzers 8 | . . . . . 8 . . Garrison Access . | . . . . . . . . Terminal Hacks 8 | . 2 . 1 . 5 . . Record 1 | . . . 1 . . . . Part Schematic 1 | . . . . . 1 . . Robot Analysis 3 | . 1 . . . 2 . . Branch Access Points 1 | . . . . . 1 . . Terminal Index 2 | . 1 . . . 1 . . Fabricator Hacks . | . . . . . . . . Repair Station Hacks 8 | . 2 . . . 6 . . Scan Component 4 | . 1 . . . 3 . . Repair 4 | . 1 . . . 3 . . Recycling Unit Hacks 2 | . 2 . . . . . . Retrieve Components 2 | . 2 . . . . . . Scanalyzer 8 | . . . . . 8 . . Insert Component 3 | . . . . . 3 . . Analyze 5 | . . . . . 5 . . Garrison Access Hacks . | . . . . . . . . Unauthorized Hacks 14 | . 6 . . . 8 . . Terminals 11 | . 3 . . . 8 . . Track 1 | . . . . . 1 . . Botnet 8 | . 2 . . . 6 . . Operators 2 | . 1 . . . 1 . . Fabricators . | . . . . . . . . Repair Stations . | . . . . . . . . Recycling Units 3 | . 3 . . . . . . Recyclers 2 | . 2 . . . . . . Mask 1 | . 1 . . . . . . Scanalyzers . | . . . . . . . . Garrison Access . | . . . . . . . . Data Cores Recovered . | . . . . . . . . Used . | . . . . . . . . Hacking Detections 17 | . 6 . . . 11 . . Full Trace Events 10 | . 3 . . . 7 . . Feedback Events . | . . . . . . . . Feedback Blocked . | . . . . . . . . Robot Schematics Acquired . | . . . . . . . . Robots Built . | . . . . . . . . Matter . | . . . . . . . . Time . | . . . . . . . . Total Robot Build Rating . | . . . . . . . . Part Schematics Acquired 4 | . . . . . 4 . . Parts Built . | . . . . . . . . Matter . | . . . . . . . . Time . | . . . . . . . . Total Part Build Rating . | . . . . . . . . Parts Repaired 4 | . 1 . . . 3 . . Time 145 | . 13 . . . 132 . . Parts Recycled . | . . . . . . . . Recycled Matter . | . . . . . . . . Retrieved Matter . | . . . . . . . . Retrieved Components 10 | . 10 . . . . . . Parts Scanalyzed 3 | . . . . . 3 . . Part Schematics Acquired 3 | . . . . . 3 . . Parts Damaged . | . . . . . . . . Bothacking | -11 -10 -10 -10 -9 -8 -7 -7 ------------ Run | Scr Mat Min Exi Min Mat Fac Was Used RIF Installer . | . . . . . . . . Robots Hacked . | . . . . . . . . Non-combat . | . . . . . . . . Combat . | . . . . . . . . Robot Hacks Applied . | . . . . . . . . Relay Couplers Released 2 | . . . . . 2 . . Machine Destruction 2 | . . . . . 2 . . Robots Rewired . | . . . . . . . . Allies Hacked . | . . . . . . . . Hacks Repelled . | . . . . . . . . Allies | -11 -10 -10 -10 -9 -8 -7 -7 -------- Run | Scr Mat Min Exi Min Mat Fac Was Total Allies 3 | . . 3 . . . . . Largest Group 3 | . . 3 1 1 . . . Highest-Rated Group 40 | . . 40 16 16 . . . Highest-Rated Ally 16 | . . 16 16 16 . . . Total Orders . | . . . . . . . . Ally Attacks 4 | . . . . 4 . . . Total Damage 49 | . . . . 49 . . . Kills . | . . . . . . . . Allies Corrupted . | . . . . . . . . Allies Melted . | . . . . . . . . Intel | -11 -10 -10 -10 -9 -8 -7 -7 ------- Run | Scr Mat Min Exi Min Mat Fac Was Robot Analysis Total 3 | . 1 . . . 2 . . Derelict Logs Recovered 3 | . . 2 . 1 . . . Drone Launches . | . . . . . . . . Drone Recoveries . | . . . . . . . . Exploration | -11 -10 -10 -10 -9 -8 -7 -7 ------------- Run | Scr Mat Min Exi Min Mat Fac Was Turns Passed 7325 | 169 1285 944 735 1121 2826 153 92 Spaces Moved 3108 | 70 637 576 386 532 821 66 20 Core 10 | 9 . . . . . . 1 Treads 2891 | 61 637 576 386 532 699 . . Legs 44 | . . . . . 44 . . Wheels 163 | . . . . . 78 66 19 Hover . | . . . . . . . . Flight . | . . . . . . . . Fastest Speed 50 | 50 160 160 160 200 150 200 160 Average Speed 185 | 145 160 160 181 200 214 200 267 Slowest Speed 1450 | 160 160 160 200 200 260 210 1450 Overloaded Moves . | . . . . . . . . Propulsion Burnouts . | . . . . . . . . Robots Hopped . | . . . . . . . . Cave-ins Triggered . | . . . . . . . . Exploration Rate (%) 55 | 4 96 99 61 91 71 2 16 Regions Visited 7 Branch Regions 3 Pre-discovered Areas 2 | . . 1 1 . . . . Known Exits Taken 1 | . . . . . 1 . . Unknown Exits Taken 5 | 1 1 1 1 1 . . . Scrap Searched 3 | . . 1 . 2 . . . Spaces Dug 16 | . . . . . 16 . . Terrain Destroyed 116 | . 28 23 . 9 34 . 22 Melee . | . . . . . . . . Projectile 22 | . . . . . 22 . . AOE 94 | . 28 23 . 9 12 . 22 Terrain Rammed . | . . . . . . . . Walls Destroyed . | . . . . . . . . Machines Disabled . | . . . . . . . . Actions | -11 -10 -10 -10 -9 -8 -7 -7 --------- Run | Scr Mat Min Exi Min Mat Fac Was Total 4096 | 100 792 591 423 572 1483 83 52 Wait 351 | . 39 4 . 7 278 . 23 Move 3102 | 69 636 575 385 531 820 66 20 Hop . | . . . . . . . . Pick Up 117 | 7 19 3 24 7 55 2 . Fast Attach 23 | 4 5 . 1 1 9 3 . Attach 24 | 2 5 . 2 . 12 2 1 Detach 13 | . 5 . . . 4 4 . Swap 59 | . 10 4 2 5 36 2 . Drop 75 | . 13 . 9 10 39 2 2 Fire 328 | 18 60 5 . 11 228 2 4 Melee . | . . . . . . . . Ram . | . . . . . . . . Kick . | . . . . . . . . Crush 2 | . . . . . 2 . . Escape Stasis . | . . . . . . . . Rewire . | . . . . . . . . Trap 2 | . . . . . . . 2 Miscellaneous . | . . . . . . . . Route ------- -11/Scrapyard -10/Materials (discovered 5 exits: *Mat x3 / [*Min x2]) -10/Mines (discovered 3 exits: *Mat x2 / *Exi) -10/Exiles -9/Mines (discovered 2 exits: *Mat x2) -8/Materials (discovered 2 exits: *Fac x2) -7/Factory -7/Waste History --------- Turn | Location | Event 19 | -11/Scrapyard | Discovered new exit (range 15) 170 | -11/Scrapyard | Entered Materials 307 | -10/Materials | Build established: Mutant 318 | -10/Materials | Discovered new exit (range 10) 501 | -10/Materials | Discovered new exit (range 18) 538 | -10/Materials | Repaired Lgt. Treads 823 | -10/Materials | Discovered new exit (range 13) 907 | -10/Materials | Core integrity fell below 50% 962 | -10/Materials | Identified exit to Materials 1077 | -10/Materials | Discovered exit to Materials (range 16) 1202 | -10/Materials | Discovered new exit (range 7) 1455 | -10/Materials | Entered Mines 1481 | -10/Mines | Met a Derelict bent on vengeance 1510 | -10/Mines | Discovered exit to Materials (range 13) 1528 | -10/Mines | Received a Rocket Launcher from a helpful Derelict 1538 | -10/Mines | Discovered exit to Materials (range 8) 1603 | -10/Mines | Assisted by bots powering up and referring to "LRC-V3" 1965 | -10/Mines | Learned 2 Materials zone layouts 2349 | -10/Mines | Learned location of Zion (-6) 2389 | -10/Mines | Deemed a non-threat by the Exiles lab entrance 2390 | -10/Mines | Discovered new exit (range 5) 2399 | -10/Mines | Entered Exiles 2399 | -10/Exiles | Accompanied by 1 ally 2439 | -10/Exiles | Met 8R-AWN 2465 | -10/Exiles | Met EX-HEX 2513 | -10/Exiles | Met EX-BIN 2537 | -10/Exiles | Met EX-DEC 2906 | -10/Exiles | Build established: Hauler-Mutant 3037 | -10/Exiles | Discovered new exit (range 15) 3134 | -10/Exiles | Entered Mines 3134 | -9/Mines | Accompanied by 1 ally 3164 | -9/Mines | A weapon hastily lodged in a ceiling crevice suddenly fell to the ground 3182 | -9/Mines | Found a hidden stash of uninstalled traps 3531 | -9/Mines | Discovered new exit (range 8) 3934 | -9/Mines | Discovered new exit (range 7) 4026 | -9/Mines | Core integrity fell below 20% 4092 | -9/Mines | Joined a pair of Derelicts in attacking an 0b10 outpost 4255 | -9/Mines | Entered Materials 4255 | -8/Materials | Evolved 4 slots: Utility x4 4256 | -8/Materials | Identified exit to Factory 4785 | -8/Materials | Repaired Imp. Medium Armor Plating 4830 | -8/Materials | Repaired Imp. Medium Armor Plating 4948 | -8/Materials | Repaired Imp. Medium Armor Plating 5891 | -8/Materials | Discovered exit to Factory (range 12) 6655 | -8/Materials | First assault squad dispatched 6663 | -8/Materials | Garrison activated, responded to threat 6698 | -8/Materials | Lost 3 parts (1p1n1u) 6720 | -8/Materials | Core integrity fell below 50% 6734 | -8/Materials | Destroyed 9 combat bots 6767 | -8/Materials | Lost 5 parts (1n2u2w) 7081 | -8/Materials | Entered Factory 7081 | -7/Factory | Evolved 2 slots: Utility x2 7082 | -7/Factory | Identified exit to Lower Caves 7234 | -7/Factory | Sucked down chute 7234 | -7/Factory | Entered Waste 7257 | -7/Waste | Spotted C-40 Crusher 7276 | -7/Waste | Spotted C-40 Crusher 7286 | -7/Waste | Crushed by Compactor (1 part destroyed) 7289 | -7/Waste | Crushed by Compactor (1 part destroyed, 1 dropped) 7289 | -7/Waste | Spotted C-40 Crusher 7295 | -7/Waste | Crushed by Compactor (1 part destroyed, 1 dropped) 7295 | -7/Waste | Spotted C-40 Crusher 7299 | -7/Waste | Crushed by Compactor (0 parts destroyed, 1 dropped) 7311 | -7/Waste | Crushed by Compactor (1 part destroyed, 1 dropped) 7318 | -7/Waste | Core integrity fell below 50% 7324 | -7/Waste | Core integrity fell below 20% 7326 | -7/Waste | Destroyed by C-40 Crusher with Compactor Last Messages --------------- 07295_ Lgt. Nuclear Core crushed. 07295_ Wheel crushed. 07298_ C-40 Crusher triggered Blade Trap. 07298_ Massive razor-sharp blades shoot up from within the floor. 07299_ Flak Gun crushed. 07301_ Datajack crushed. 07302_ Core Shielding destroyed. 07310_ Dropped Humpback. 07311_ Remote Datajack crushed. 07311_ Hrd. Medium Armor Plating crushed. 07311_ Hvy. Assault Rifle crushed. 07311_ Imp. Targeting Computer crushed. 07311_ Imp. Medium Armor Plating crushed. 07311_ Adv. Targeting Computer crushed. 07311_ Imp. Sensor Array crushed. 07317_ Hardlight Generator crushed. 07319_ Adv. Assault Cannon crushed. 07321_ Hvy. EM Pulse Gun crushed. 07325_ Med. Storage Unit crushed. 07325_ Com. Battery crushed. Map ----- +----------------------------------------------------+ | ????????????????????????????????????????? | | ????????????????????????????????????????? | | ????????????????????????????????????????? | | ????????????????????????????????????????? | | ????????????????????????????????????????? | | ????????????????????????????????????????? | | ????????????????????????????????????????? | | ????????????????????????????????????????? | | ????????????????????????????????????????? | | ????????????????????????????????????????? | | ????????????????????????????????????????? | | ????????????????????????????????????????? | | ????????????????????????????????????????? | | ????????????????????????????????????????? | | ????????????????????????????????????????? | | ????????????????????????????????????????? | | ????????????????????????????????????????? | | ????????????????????????????#####???????? | | ???????????????????????????? #???????? | | ?????????????##############? #???????? | | ?????????????# ## #???????? | | ?????????????# CC #???????? | | ?????????????# CC ## #???????? | | ?????????????#[![CC #???????? | | ?????????????#[!!CC #???????? | | ?????????????#!!@CC #???????? | | ?????????????#!CCCC #???????? | | ?????????????# CC #???????? | | ?????????????# # #???????? | | ?????????????# # #???????? | | ?????????????########## #### #???????? | | ???????????????????????##???? #???????? | | ????????????????????????????? ???????? | | ????????????????????????????? ??????? | | ????????????????????????????? ?????? | | ?????????????????????????????? ????? | | ?????????????????????????????? ####????? | | ?????????????????????????????? #???????? | | ?????????????????????????????? #???????? | | ??????????????????????????????? ????????? | | ????????????????????????????????????????? | | ????????????????????????????????????????? | | ????????????????????????????????????????? | | ????????????????????????????????????????? | | ????????????????????????????????????????? | | ????????????????????????????????????????? | | ????????????????????????????????????????? | | ????????????????????????????????????????? | | ????????????????????????????????????????? | | ????????????????????????????????????????? | +----------------------------------------------------+ Best States ------------- Heat Dissipation 34 Energy Generation 14 Energy Capacity 265 Matter Stores 300 Matter Capacity 300 Sight Range 18 Terrain Scan Density 10 Armor Coverage 900 Resistance: EM 15 Core Shielding 20 Evasion (%) 50 Targeting Accuracy 12 Recoil Reduction 2 Item Schematics ----------------- System Shield | -8/Materials | Scanalyzed Hacking Suite | -8/Materials | Hacked Humpback | -8/Materials | Scanalyzed Adv. Signal Interpreter | -8/Materials | Scanalyzed Robot Schematics ------------------ None Fabricated ------------ Nothing Alien Tech Used ----------------- None Achievements -------------- None Challenges ------------ None Game ------ Seed MetafiberTiamatTrap Manual? 0 Play Time 00:50:22 Cumulative 354.3 hours Start 2021.07.04 @ 14:07:05 End 2021.07.04 @ 16:42:40 Sessions 3 Manual Loads 0 Difficulty Rogue Special Mode None Game No. 301 Rogue 301 Adventurer 0 Explorer 0 Win Type - Total 1 Types 0/0/0/1/0/0/0/0/0 Lore% 69 Gallery% 77 Achievement% 59 Wizard Run 0 Options --------- ASCII 0 Keyboard 1 Movement Numpad Keybinds 0 Fullscreen 1 Font 12/Terminus Map View 83x54 Tactical HUD 1 Map Filters NONE Filters NONE Steam 1 RUN: e8de41a1-20e2-472e-a84a-363002e83247